[Event "Late-Titled-Tuesday-Blitz-September-19-2023"]
[Site "Chess.com"]
[Date "2023.09.19"]
[Round "8"]
[White "Arystanner"]
[Black "sergeikim"]
[Result "1-0"]
[WhiteElo "2802"]
[BlackElo "2604"]
[TimeControl "180+1"]
[EndTime "15:25:43 PDT"]
[Termination "Arystanner won by resignation"]

1. d4 {[%clk 0:02:56.5]} 1... Nf6 {[%clk 0:03:00]} 2. c4 {[%clk 0:02:56.5]} 2...
g6 {[%clk 0:03:00.1]} 3. Nc3 {[%clk 0:02:56.9]} 3... Bg7 {[%clk 0:03:00.3]} 4.
e4 {[%clk 0:02:57.6]} 4... d6 {[%clk 0:03:00.6]} 5. Be2 {[%clk 0:02:58.2]} 5...
O-O {[%clk 0:03:00.6]} 6. Be3 {[%clk 0:02:58.9]} 6... e5 {[%clk 0:02:59.2]} 7.
d5 {[%clk 0:02:59.4]} 7... a5 {[%clk 0:02:59.3]} 8. h4 {[%clk 0:02:59.7]} 8...
Na6 {[%clk 0:02:59.2]} 9. h5 {[%clk 0:02:57.1]} 9... Nc5 {[%clk 0:02:59.1]} 10.
Qc2 {[%clk 0:02:56.3]} 10... Bd7 {[%clk 0:02:57.2]} 11. h6 {[%clk 0:02:56.2]}
11... Bh8 {[%clk 0:02:56.5]} 12. Nh3 {[%clk 0:02:53.8]} 12... a4 {[%clk
0:02:55.2]} 13. f3 {[%clk 0:02:50]} 13... Ne8 {[%clk 0:02:53.9]} 14. Nf2 {[%clk
0:02:50.3]} 14... c6 {[%clk 0:02:49.5]} 15. Nd3 {[%clk 0:02:48]} 15... b6 {[%clk
0:02:41.1]} 16. dxc6 {[%clk 0:02:46.8]} 16... Bxc6 {[%clk 0:02:40.6]} 17. Nb4
{[%clk 0:02:45.2]} 17... Bb7 {[%clk 0:02:36.6]} 18. O-O-O {[%clk 0:02:44.9]}
18... Nc7 {[%clk 0:02:34.3]} 19. Qd2 {[%clk 0:02:41.8]} 19... N7e6 {[%clk
0:02:27.3]} 20. Qxd6 {[%clk 0:02:36.3]} 20... Nd4 {[%clk 0:02:27.3]} 21. Qxd8
{[%clk 0:02:29.2]} 21... Rfxd8 {[%clk 0:02:27.2]} 22. Bxd4 {[%clk 0:02:24]}
22... exd4 {[%clk 0:02:26.2]} 23. Ncd5 {[%clk 0:02:24.3]} 23... Kf8 {[%clk
0:01:54.7]} 24. Kc2 {[%clk 0:02:23.9]} 24... Rab8 {[%clk 0:01:34.5]} 25. Bd3
{[%clk 0:02:04.4]} 25... Re8 {[%clk 0:01:20.3]} 26. g4 {[%clk 0:01:54.8]} 26...
Nxd3 {[%clk 0:00:49.5]} 27. Kxd3 {[%clk 0:01:53.2]} 27... f5 {[%clk 0:00:38.8]}
28. gxf5 {[%clk 0:01:52.4]} 28... gxf5 {[%clk 0:00:38.5]} 29. Rh5 {[%clk
0:01:52.5]} 29... fxe4+ {[%clk 0:00:37]} 30. fxe4 {[%clk 0:01:52.9]} 30... Re5
{[%clk 0:00:35.3]} 31. Rf1+ {[%clk 0:01:45.2]} 31... Ke8 {[%clk 0:00:27.9]} 32.
Rxe5+ {[%clk 0:01:45.3]} 32... Bxe5 {[%clk 0:00:27.2]} 33. Nf6+ {[%clk
0:01:45.5]} 33... Ke7 {[%clk 0:00:24.8]} 34. Nxh7 {[%clk 0:01:45.8]} 34... Rh8
{[%clk 0:00:24]} 35. Ng5 {[%clk 0:01:46.2]} 35... Rxh6 {[%clk 0:00:22.5]} 36.
Rf7+ {[%clk 0:01:45.9]} 36... Ke8 {[%clk 0:00:20.2]} 37. Rxb7 {[%clk 0:01:45.7]}
1-0

[Event "Late-Titled-Tuesday-Blitz-September-19-2023"]
[Site "Chess.com"]
[Date "2023.09.19"]
[Round "8"]
[White "WilsonPalencia21"]
[Black "AsaHoffmann"]
[Result "0-1"]
[WhiteElo "2550"]
[BlackElo "2386"]
[TimeControl "180+1"]
[EndTime "15:25:54 PDT"]
[Termination "AsaHoffmann won by resignation"]

1. d4 {[%clk 0:02:51.2]} 1... Nf6 {[%clk 0:02:59.4]} 2. c4 {[%clk 0:02:49.5]}
2... c5 {[%clk 0:02:59.3]} 3. d5 {[%clk 0:02:49.1]} 3... e5 {[%clk 0:02:59]} 4.
Nc3 {[%clk 0:02:47.9]} 4... d6 {[%clk 0:02:58.8]} 5. e4 {[%clk 0:02:48.1]} 5...
Be7 {[%clk 0:02:58.7]} 6. h3 {[%clk 0:02:48.4]} 6... Nbd7 {[%clk 0:02:58.3]} 7.
g4 {[%clk 0:02:47]} 7... Nf8 {[%clk 0:02:57.8]} 8. Bd3 {[%clk 0:02:44.6]} 8...
Ng6 {[%clk 0:02:57.5]} 9. Nge2 {[%clk 0:02:44.3]} 9... O-O {[%clk 0:02:53.7]}
10. Be3 {[%clk 0:02:43.2]} 10... Nh4 {[%clk 0:02:53]} 11. Ng3 {[%clk 0:02:41.9]}
11... Ng2+ {[%clk 0:02:51.4]} 12. Kd2 {[%clk 0:02:41.6]} 12... Nxe3 {[%clk
0:02:51]} 13. fxe3 {[%clk 0:02:42]} 13... a6 {[%clk 0:02:43.2]} 14. g5 {[%clk
0:02:41.7]} 14... Ne8 {[%clk 0:02:41.3]} 15. h4 {[%clk 0:02:42.1]} 15... Nc7
{[%clk 0:02:35.8]} 16. a4 {[%clk 0:02:38.9]} 16... b6 {[%clk 0:02:34.7]} 17. Qg1
{[%clk 0:02:31.7]} 17... Bd7 {[%clk 0:02:33.2]} 18. Nf5 {[%clk 0:02:25.4]} 18...
Rb8 {[%clk 0:02:29.8]} 19. Kc2 {[%clk 0:02:22.9]} 19... b5 {[%clk 0:02:25.5]}
20. b3 {[%clk 0:02:22.9]} 20... bxc4 {[%clk 0:02:24.8]} 21. Bxc4 {[%clk
0:02:19.1]} 21... Rb4 {[%clk 0:02:23.8]} 22. Rf1 {[%clk 0:02:06.7]} 22... Bxf5
{[%clk 0:02:16.5]} 23. exf5 {[%clk 0:02:05.2]} 23... f6 {[%clk 0:02:13.7]} 24.
Ne4 {[%clk 0:01:51.4]} 24... Qb8 {[%clk 0:02:05.8]} 25. h5 {[%clk 0:01:42]}
25... Rxc4+ {[%clk 0:02:05.1]} 26. bxc4 {[%clk 0:01:41.6]} 26... Qb4 {[%clk
0:02:04.9]} 27. Kd3 {[%clk 0:01:34.4]} 27... Qb3+ {[%clk 0:01:55.1]} 28. Nc3
{[%clk 0:01:33.6]} 28... e4+ {[%clk 0:01:54.9]} 29. Kxe4 {[%clk 0:01:21.8]}
29... Qxc3 {[%clk 0:01:54.2]} 30. h6 {[%clk 0:01:18]} 30... fxg5 {[%clk
0:01:48]} 31. f6 {[%clk 0:01:13.3]} 31... Qxc4+ {[%clk 0:01:46.9]} 32. Kf3
{[%clk 0:01:12.9]} 32... Rxf6+ {[%clk 0:01:46.6]} 33. Kg3 {[%clk 0:01:12.6]}
33... Rxf1 {[%clk 0:01:42.9]} 34. Qxf1 {[%clk 0:01:12.6]} 34... Qxf1 {[%clk
0:01:42.5]} 35. Rxf1 {[%clk 0:01:12.2]} 35... Nxd5 {[%clk 0:01:40.2]} 36. e4
{[%clk 0:01:04.3]} 36... Nf6 {[%clk 0:01:38.9]} 37. e5 {[%clk 0:01:03.2]} 37...
dxe5 {[%clk 0:01:37.9]} 38. Rb1 {[%clk 0:01:03.1]} 38... gxh6 {[%clk 0:01:35.9]}
39. Rb8+ {[%clk 0:01:02.4]} 39... Kf7 {[%clk 0:01:35.4]} 40. Ra8 {[%clk
0:01:02]} 40... e4 {[%clk 0:01:32.7]} 41. Rxa6 {[%clk 0:01:01.5]} 41... h5
{[%clk 0:01:30.6]} 42. Rc6 {[%clk 0:00:58.9]} 42... h4+ {[%clk 0:01:29.7]} 43.
Kh3 {[%clk 0:00:57.2]} 43... e3 {[%clk 0:01:27.5]} 44. Kg2 {[%clk 0:00:48.8]}
44... g4 {[%clk 0:01:26.7]} 45. a5 {[%clk 0:00:46.7]} 45... h3+ {[%clk
0:01:26.6]} 46. Kg3 {[%clk 0:00:42.2]} 46... h2 {[%clk 0:01:24.8]} 0-1

[Event "Late-Titled-Tuesday-Blitz-September-19-2023"]
[Site "Chess.com"]
[Date "2023.09.19"]
[Round "8"]
[White "Angry_Twin"]
[Black "atigerman"]
[Result "1-0"]
[WhiteElo "2953"]
[BlackElo "2703"]
[TimeControl "180+1"]
[EndTime "15:26:11 PDT"]
[Termination "Angry_Twin won on time"]

1. e4 {[%clk 0:03:00.9]} 1... Nf6 {[%clk 0:02:56.7]} 2. e5 {[%clk 0:03:00.8]}
2... Nd5 {[%clk 0:02:57.1]} 3. d4 {[%clk 0:03:01.6]} 3... Nb6 {[%clk 0:02:57.5]}
4. c4 {[%clk 0:03:01.5]} 4... d6 {[%clk 0:02:58]} 5. exd6 {[%clk 0:03:02.1]}
5... cxd6 {[%clk 0:02:58.9]} 6. Nc3 {[%clk 0:03:02.6]} 6... g6 {[%clk
0:02:59.2]} 7. Be3 {[%clk 0:03:03.4]} 7... Bg7 {[%clk 0:02:59.8]} 8. Rc1 {[%clk
0:03:04]} 8... O-O {[%clk 0:03:00.3]} 9. b3 {[%clk 0:03:04.7]} 9... Bf5 {[%clk
0:03:00.2]} 10. g4 {[%clk 0:03:02]} 10... Bc8 {[%clk 0:02:59.5]} 11. Bg2 {[%clk
0:02:58.4]} 11... Nc6 {[%clk 0:02:57.5]} 12. d5 {[%clk 0:02:55.3]} 12... Ne5
{[%clk 0:02:57.4]} 13. h3 {[%clk 0:02:55.5]} 13... f5 {[%clk 0:02:57.5]} 14. f4
{[%clk 0:02:55.8]} 14... Nf7 {[%clk 0:02:55.9]} 15. g5 {[%clk 0:02:55.4]} 15...
e5 {[%clk 0:02:54.3]} 16. dxe6 {[%clk 0:02:55.8]} 16... Bxe6 {[%clk 0:02:54.3]}
17. Nge2 {[%clk 0:02:54.7]} 17... Re8 {[%clk 0:02:54.9]} 18. Bd4 {[%clk
0:02:54.8]} 18... Ne5 {[%clk 0:02:32.2]} 19. fxe5 {[%clk 0:02:32.4]} 19... Qxg5
{[%clk 0:02:31]} 20. Bxb7 {[%clk 0:02:13.1]} 20... dxe5 {[%clk 0:02:28.4]} 21.
Bxb6 {[%clk 0:02:08.7]} 21... axb6 {[%clk 0:02:09.9]} 22. Bxa8 {[%clk
0:02:07.9]} 22... Rxa8 {[%clk 0:02:04.6]} 23. Qd6 {[%clk 0:01:55.9]} 23... Qh4+
{[%clk 0:01:56.9]} 24. Kf1 {[%clk 0:01:53.8]} 24... Bf7 {[%clk 0:01:53.8]} 25.
Rd1 {[%clk 0:01:51.5]} 25... e4 {[%clk 0:01:30.7]} 26. Qxb6 {[%clk 0:01:49.7]}
26... f4 {[%clk 0:00:58.1]} 27. Nxe4 {[%clk 0:01:46]} 27... f3 {[%clk
0:00:25.6]} 28. N2g3 {[%clk 0:01:45.9]} 28... Rxa2 {[%clk 0:00:23.5]} 29. Qd8+
{[%clk 0:01:45.5]} 29... Qxd8 {[%clk 0:00:21.7]} 30. Rxd8+ {[%clk 0:01:46.4]}
30... Bf8 {[%clk 0:00:22.1]} 31. Rd2 {[%clk 0:01:46]} 31... Ra3 {[%clk
0:00:19.5]} 32. Kf2 {[%clk 0:01:39.5]} 32... Rxb3 {[%clk 0:00:18.6]} 33. Rd8
{[%clk 0:01:36.7]} 33... Kg7 {[%clk 0:00:16.5]} 34. Rd7 {[%clk 0:01:33.9]} 34...
Kg8 {[%clk 0:00:10.3]} 35. Ra1 {[%clk 0:01:28]} 35... Be6 {[%clk 0:00:05.8]} 36.
Nf6+ {[%clk 0:01:27.9]} 1-0

[Event "Late-Titled-Tuesday-Blitz-September-19-2023"]
[Site "Chess.com"]
[Date "2023.09.19"]
[Round "8"]
[White "jk13"]
[Black "HajiyevKanan"]
[Result "1-0"]
[WhiteElo "2636"]
[BlackElo "2479"]
[TimeControl "180+1"]
[EndTime "15:26:12 PDT"]
[Termination "jk13 won on time"]

1. e4 {[%clk 0:03:00.9]} 1... c6 {[%clk 0:03:00.4]} 2. Nc3 {[%clk 0:03:00.1]}
2... d5 {[%clk 0:03:01.3]} 3. Nf3 {[%clk 0:03:00.2]} 3... a6 {[%clk 0:03:02]} 4.
h3 {[%clk 0:02:59.7]} 4... h6 {[%clk 0:03:01.7]} 5. d4 {[%clk 0:02:59.5]} 5...
Nf6 {[%clk 0:03:00.3]} 6. Bd3 {[%clk 0:02:59.4]} 6... dxe4 {[%clk 0:03:00.4]} 7.
Nxe4 {[%clk 0:03:00.3]} 7... Nxe4 {[%clk 0:02:58.6]} 8. Bxe4 {[%clk 0:03:01.2]}
8... Nd7 {[%clk 0:02:59.1]} 9. c3 {[%clk 0:03:01.3]} 9... Nf6 {[%clk 0:02:59.4]}
10. Bc2 {[%clk 0:03:02.1]} 10... g5 {[%clk 0:02:42.8]} 11. Ne5 {[%clk
0:02:56.1]} 11... Bg7 {[%clk 0:02:42.5]} 12. O-O {[%clk 0:02:55.3]} 12... O-O
{[%clk 0:02:35.5]} 13. f4 {[%clk 0:02:54.4]} 13... gxf4 {[%clk 0:02:31]} 14.
Bxf4 {[%clk 0:02:54.2]} 14... Nd5 {[%clk 0:02:27.1]} 15. Bd2 {[%clk 0:02:44.5]}
15... c5 {[%clk 0:01:46.7]} 16. Qf3 {[%clk 0:02:33]} 16... cxd4 {[%clk
0:01:38.3]} 17. cxd4 {[%clk 0:02:28.9]} 17... Be6 {[%clk 0:01:32.3]} 18. Qd3
{[%clk 0:02:05.3]} 18... f5 {[%clk 0:01:25.7]} 19. Qg3 {[%clk 0:02:01.2]} 19...
Nf6 {[%clk 0:01:11.7]} 20. Kh1 {[%clk 0:01:30.2]} 20... Qxd4 {[%clk 0:01:04.2]}
21. Bc3 {[%clk 0:01:30.3]} 21... Qd6 {[%clk 0:00:17.1]} 22. Rad1 {[%clk
0:01:23]} 22... Qb8 {[%clk 0:00:11]} 23. Qg6 {[%clk 0:01:16.3]} 23... Qe8 {[%clk
0:00:09.5]} 24. Qg3 {[%clk 0:01:13.3]} 24... Qh5 {[%clk 0:00:08.2]} 25. Ng6
{[%clk 0:01:09.8]} 25... Rf7 {[%clk 0:00:06]} 26. Nf4 {[%clk 0:01:09.9]} 26...
Qg5 {[%clk 0:00:05.4]} 27. Qxg5 {[%clk 0:01:10.1]} 27... hxg5 {[%clk 0:00:06.3]}
28. Nxe6 {[%clk 0:01:10.7]} 28... Bh6 {[%clk 0:00:05.9]} 29. Bxf5 {[%clk
0:01:08.8]} 29... b5 {[%clk 0:00:03.1]} 30. Bg6 {[%clk 0:01:07.8]} 30... Ne4
{[%clk 0:00:01.6]} 31. Bxf7+ {[%clk 0:01:07.8]} 1-0

[Event "Late-Titled-Tuesday-Blitz-September-19-2023"]
[Site "Chess.com"]
[Date "2023.09.19"]
[Round "8"]
[White "krzyzan94"]
[Black "amanmuhammethommadov"]
[Result "1-0"]
[WhiteElo "2801"]
[BlackElo "2574"]
[TimeControl "180+1"]
[EndTime "15:26:28 PDT"]
[Termination "krzyzan94 won by checkmate"]

1. Nf3 {[%clk 0:03:00.9]} 1... Nf6 {[%clk 0:03:00.1]} 2. c4 {[%clk 0:02:58.9]}
2... g6 {[%clk 0:03:00.4]} 3. g3 {[%clk 0:02:58]} 3... Bg7 {[%clk 0:03:00.8]} 4.
Bg2 {[%clk 0:02:58.7]} 4... O-O {[%clk 0:03:01.7]} 5. O-O {[%clk 0:02:59.3]}
5... d6 {[%clk 0:03:02.6]} 6. d4 {[%clk 0:02:59.3]} 6... c6 {[%clk 0:03:03.1]}
7. Nc3 {[%clk 0:02:58.2]} 7... Bf5 {[%clk 0:03:03.7]} 8. Nh4 {[%clk 0:02:55.5]}
8... Be6 {[%clk 0:03:03.9]} 9. d5 {[%clk 0:02:54.1]} 9... cxd5 {[%clk
0:03:04.8]} 10. cxd5 {[%clk 0:02:51.8]} 10... Bd7 {[%clk 0:03:05.2]} 11. Be3
{[%clk 0:02:47.2]} 11... b5 {[%clk 0:03:05.3]} 12. Bd4 {[%clk 0:02:45.3]} 12...
a5 {[%clk 0:03:02.6]} 13. Ne4 {[%clk 0:02:38.3]} 13... Nxe4 {[%clk 0:03:00.3]}
14. Bxe4 {[%clk 0:02:37.5]} 14... Bxd4 {[%clk 0:02:45]} 15. Qxd4 {[%clk
0:02:37]} 15... Na6 {[%clk 0:02:45.2]} 16. Rac1 {[%clk 0:02:31.4]} 16... Qb8
{[%clk 0:02:43.7]} 17. Nf3 {[%clk 0:02:26.1]} 17... Rc8 {[%clk 0:02:40.9]} 18.
Qd2 {[%clk 0:02:21.7]} 18... Nc5 {[%clk 0:02:32.5]} 19. Bb1 {[%clk 0:02:19.5]}
19... Qb7 {[%clk 0:02:32.2]} 20. Qh6 {[%clk 0:02:07.9]} 20... f6 {[%clk
0:02:04]} 21. Bxg6 {[%clk 0:02:00.7]} 21... hxg6 {[%clk 0:02:03.2]} 22. Qxg6+
{[%clk 0:02:01.6]} 22... Kf8 {[%clk 0:01:56.7]} 23. Rcd1 {[%clk 0:01:52.5]}
23... Na4 {[%clk 0:01:30.1]} 24. Qh7 {[%clk 0:01:01.7]} 24... Be8 {[%clk
0:00:56.2]} 25. Qh8+ {[%clk 0:00:46.9]} 25... Kf7 {[%clk 0:00:56.4]} 26. Nh4
{[%clk 0:00:46.1]} 26... Qd7 {[%clk 0:00:31.9]} 27. Qh7+ {[%clk 0:00:39.4]}
27... Kf8 {[%clk 0:00:31.8]} 28. Nf5 {[%clk 0:00:37.7]} 28... e5 {[%clk
0:00:20.2]} 29. Qh8+ {[%clk 0:00:34.5]} 29... Kf7 {[%clk 0:00:20.5]} 30. Qg7#
{[%clk 0:00:35.4]} 1-0

[Event "Late-Titled-Tuesday-Blitz-September-19-2023"]
[Site "Chess.com"]
[Date "2023.09.19"]
[Round "8"]
[White "miraitrunks"]
[Black "Inepton_Fermion"]
[Result "1-0"]
[WhiteElo "2152"]
[BlackElo "2363"]
[TimeControl "180+1"]
[EndTime "15:26:29 PDT"]
[Termination "miraitrunks won on time"]

1. e4 {[%clk 0:03:00]} 1... c5 {[%clk 0:03:00.4]} 2. c3 {[%clk 0:02:59.3]} 2...
d5 {[%clk 0:03:00.2]} 3. exd5 {[%clk 0:03:00.2]} 3... Qxd5 {[%clk 0:03:00.9]} 4.
d4 {[%clk 0:03:01]} 4... Nf6 {[%clk 0:03:01.3]} 5. Na3 {[%clk 0:03:00.7]} 5...
a6 {[%clk 0:02:52.4]} 6. Nf3 {[%clk 0:02:56.1]} 6... e6 {[%clk 0:02:49.7]} 7.
Be2 {[%clk 0:02:52.3]} 7... Be7 {[%clk 0:02:36.5]} 8. Nc4 {[%clk 0:02:50.9]}
8... Nbd7 {[%clk 0:02:27.7]} 9. O-O {[%clk 0:02:48]} 9... b5 {[%clk 0:02:26.1]}
10. Ne3 {[%clk 0:02:46.1]} 10... Qc6 {[%clk 0:02:25.6]} 11. Ne5 {[%clk
0:02:43.4]} 11... Qc7 {[%clk 0:01:59.2]} 12. Nxd7 {[%clk 0:02:15.2]} 12... Bxd7
{[%clk 0:01:56]} 13. dxc5 {[%clk 0:02:11.9]} 13... Bxc5 {[%clk 0:01:53.2]} 14.
Bf3 {[%clk 0:02:11.7]} 14... Rd8 {[%clk 0:01:42.6]} 15. Qe2 {[%clk 0:02:11.3]}
15... O-O {[%clk 0:01:39.8]} 16. b4 {[%clk 0:01:51.4]} 16... Bd6 {[%clk
0:01:35.9]} 17. h3 {[%clk 0:01:47.4]} 17... Qxc3 {[%clk 0:01:05.6]} 18. Bb2
{[%clk 0:01:46.6]} 18... Qxb4 {[%clk 0:01:04.3]} 19. Rfd1 {[%clk 0:01:40.9]}
19... Be7 {[%clk 0:00:50.1]} 20. Rd4 {[%clk 0:01:25.1]} 20... Qc5 {[%clk
0:00:45]} 21. Rc1 {[%clk 0:01:23.3]} 21... Qg5 {[%clk 0:00:34.3]} 22. Rc7 {[%clk
0:01:16.4]} 22... Bc5 {[%clk 0:00:28.9]} 23. Rd3 {[%clk 0:00:43.6]} 23... Bc8
{[%clk 0:00:12.6]} 24. h4 {[%clk 0:00:41.3]} 24... Qf5 {[%clk 0:00:08.6]} 25.
Nxf5 {[%clk 0:00:40.3]} 1-0

[Event "Late-Titled-Tuesday-Blitz-September-19-2023"]
[Site "Chess.com"]
[Date "2023.09.19"]
[Round "8"]
[White "fyall777"]
[Black "Hirna2005"]
[Result "0-1"]
[WhiteElo "2534"]
[BlackElo "2383"]
[TimeControl "180+1"]
[EndTime "15:26:34 PDT"]
[Termination "Hirna2005 won on time"]

1. c4 {[%clk 0:02:20]} 1... g6 {[%clk 0:03:00.1]} 2. Nc3 {[%clk 0:02:16.2]} 2...
Bg7 {[%clk 0:03:00.6]} 3. d4 {[%clk 0:02:16.6]} 3... d6 {[%clk 0:03:01.2]} 4.
Nf3 {[%clk 0:02:17.1]} 4... Bg4 {[%clk 0:03:00.1]} 5. e3 {[%clk 0:02:16.3]} 5...
Nc6 {[%clk 0:02:59.9]} 6. Be2 {[%clk 0:02:15.1]} 6... e5 {[%clk 0:02:59.1]} 7.
dxe5 {[%clk 0:02:10]} 7... dxe5 {[%clk 0:02:57.6]} 8. Nd5 {[%clk 0:02:08.1]}
8... Nge7 {[%clk 0:02:50.9]} 9. O-O {[%clk 0:02:06]} 9... O-O {[%clk 0:02:49.5]}
10. h3 {[%clk 0:02:02.4]} 10... Be6 {[%clk 0:02:46.4]} 11. e4 {[%clk 0:02:01]}
11... h6 {[%clk 0:02:41.4]} 12. Be3 {[%clk 0:01:59]} 12... f5 {[%clk 0:02:28]}
13. Qc1 {[%clk 0:01:36.4]} 13... Kh7 {[%clk 0:02:15.5]} 14. Rd1 {[%clk
0:01:35.6]} 14... Qc8 {[%clk 0:02:06.9]} 15. Bc5 {[%clk 0:01:35.3]} 15... Rf7
{[%clk 0:02:03.7]} 16. b4 {[%clk 0:01:21.5]} 16... fxe4 {[%clk 0:02:02.2]} 17.
Nxe7 {[%clk 0:01:17.2]} 17... Nxe7 {[%clk 0:01:57.7]} 18. Nd2 {[%clk 0:01:17.3]}
18... b6 {[%clk 0:01:45.1]} 19. Bxe7 {[%clk 0:01:12.6]} 19... Rxe7 {[%clk
0:01:44.9]} 20. Nxe4 {[%clk 0:01:13.5]} 20... Qf8 {[%clk 0:01:34.5]} 21. Bg4
{[%clk 0:01:12.1]} 21... Bf5 {[%clk 0:01:22.2]} 22. Ng3 {[%clk 0:01:05.8]} 22...
e4 {[%clk 0:01:10.8]} 23. Rb1 {[%clk 0:01:05.5]} 23... Rae8 {[%clk 0:01:03.9]}
24. Qe3 {[%clk 0:01:00.5]} 24... Be5 {[%clk 0:00:52.9]} 25. Rd5 {[%clk
0:00:48.3]} 25... Bxg4 {[%clk 0:00:50.8]} 26. hxg4 {[%clk 0:00:45.9]} 26... Bf4
{[%clk 0:00:51]} 27. Qd4 {[%clk 0:00:32.3]} 27... e3 {[%clk 0:00:46.1]} 28. f3
{[%clk 0:00:22.7]} 28... Bxg3 {[%clk 0:00:44.5]} 0-1

[Event "Late-Titled-Tuesday-Blitz-September-19-2023"]
[Site "Chess.com"]
[Date "2023.09.19"]
[Round "8"]
[White "Arimin1329"]
[Black "KorolDimitriy75"]
[Result "1-0"]
[WhiteElo "2283"]
[BlackElo "2361"]
[TimeControl "180+1"]
[EndTime "15:26:41 PDT"]
[Termination "Arimin1329 won on time"]

1. d4 {[%clk 0:02:57.9]} 1... Nf6 {[%clk 0:02:59.7]} 2. Nf3 {[%clk 0:02:58.4]}
2... c5 {[%clk 0:02:59.8]} 3. e3 {[%clk 0:02:54.3]} 3... g6 {[%clk 0:02:59.3]}
4. Be2 {[%clk 0:02:54.1]} 4... Bg7 {[%clk 0:02:59.1]} 5. O-O {[%clk 0:02:54.7]}
5... O-O {[%clk 0:02:58.7]} 6. b3 {[%clk 0:02:54.4]} 6... Qb6 {[%clk 0:02:52.3]}
7. Bb2 {[%clk 0:02:54.3]} 7... d5 {[%clk 0:02:52.3]} 8. Nbd2 {[%clk 0:02:52.5]}
8... Rd8 {[%clk 0:02:47.7]} 9. c4 {[%clk 0:02:47.1]} 9... Nc6 {[%clk 0:02:46.3]}
10. Rc1 {[%clk 0:02:34.4]} 10... cxd4 {[%clk 0:02:29.8]} 11. Nxd4 {[%clk
0:02:33.8]} 11... e6 {[%clk 0:01:24.5]} 12. cxd5 {[%clk 0:02:25.5]} 12... exd5
{[%clk 0:01:09.9]} 13. N2f3 {[%clk 0:02:20.6]} 13... Bd7 {[%clk 0:01:06.2]} 14.
Bd3 {[%clk 0:02:13.6]} 14... Rac8 {[%clk 0:01:04.6]} 15. Qe2 {[%clk 0:02:13.3]}
15... Ne4 {[%clk 0:00:41.2]} 16. Nb5 {[%clk 0:02:05.4]} 16... Nb4 {[%clk
0:00:23.8]} 17. Bxg7 {[%clk 0:01:55.2]} 17... Nxd3 {[%clk 0:00:15.4]} 18. Rxc8
{[%clk 0:01:54]} 18... Rxc8 {[%clk 0:00:14.6]} 19. Nbd4 {[%clk 0:01:29.6]} 19...
Kxg7 {[%clk 0:00:09.9]} 20. Qxd3 {[%clk 0:01:28.9]} 20... Rc3 {[%clk 0:00:09.7]}
21. Qb1 {[%clk 0:01:25.3]} 21... a6 {[%clk 0:00:08]} 22. h3 {[%clk 0:01:25.3]}
22... h6 {[%clk 0:00:07.6]} 23. Rc1 {[%clk 0:01:25.6]} 23... Qc7 {[%clk
0:00:07.2]} 24. Rxc3 {[%clk 0:01:23.1]} 24... Qxc3 {[%clk 0:00:08.1]} 25. Ne2
{[%clk 0:01:22.1]} 25... Qb4 {[%clk 0:00:05.6]} 26. Nf4 {[%clk 0:01:21]} 26...
Bc6 {[%clk 0:00:04.2]} 27. Qb2+ {[%clk 0:01:12.6]} 27... Qc3 {[%clk 0:00:04.4]}
28. Qb1 {[%clk 0:01:10.1]} 28... h5 {[%clk 0:00:03.4]} 29. Nd4 {[%clk 0:01:02]}
29... a5 {[%clk 0:00:03.2]} 30. Qd1 {[%clk 0:00:57.1]} 30... Qb2 {[%clk
0:00:02.6]} 31. a4 {[%clk 0:00:53.8]} 31... Qxf2+ {[%clk 0:00:02]} 32. Kh1
{[%clk 0:00:53.3]} 32... Qxe3 {[%clk 0:00:02.2]} 33. Nxh5+ {[%clk 0:00:50.2]}
33... gxh5 {[%clk 0:00:01.5]} 34. Nf5+ {[%clk 0:00:50.1]} 1-0

[Event "Late-Titled-Tuesday-Blitz-September-19-2023"]
[Site "Chess.com"]
[Date "2023.09.19"]
[Round "8"]
[White "zsoltkorpics"]
[Black "Chempiblinka"]
[Result "1-0"]
[WhiteElo "2343"]
[BlackElo "2204"]
[TimeControl "180+1"]
[EndTime "15:26:44 PDT"]
[Termination "zsoltkorpics won by resignation"]

1. e4 {[%clk 0:03:00.9]} 1... c5 {[%clk 0:02:59.3]} 2. Nf3 {[%clk 0:03:00.7]}
2... Nc6 {[%clk 0:02:59]} 3. d4 {[%clk 0:03:00.4]} 3... cxd4 {[%clk 0:02:59.4]}
4. Nxd4 {[%clk 0:03:01.3]} 4... g6 {[%clk 0:02:59.4]} 5. Nc3 {[%clk 0:03:01.3]}
5... Bg7 {[%clk 0:02:59]} 6. Be3 {[%clk 0:03:02.2]} 6... Nf6 {[%clk 0:02:59.3]}
7. Bc4 {[%clk 0:03:02.9]} 7... O-O {[%clk 0:02:59]} 8. Bb3 {[%clk 0:03:03.6]}
8... a5 {[%clk 0:02:52.3]} 9. O-O {[%clk 0:03:03.5]} 9... a4 {[%clk 0:02:11.8]}
10. Nxa4 {[%clk 0:03:02.8]} 10... Nxe4 {[%clk 0:02:10.1]} 11. Nb5 {[%clk
0:03:03.6]} 11... d6 {[%clk 0:01:53.2]} 12. f3 {[%clk 0:02:45.6]} 12... Nf6
{[%clk 0:01:50.4]} 13. Nb6 {[%clk 0:02:33.7]} 13... Ra6 {[%clk 0:01:42.5]} 14.
Nxc8 {[%clk 0:02:30.4]} 14... Qxc8 {[%clk 0:01:41.6]} 15. c3 {[%clk 0:01:57.8]}
15... Na5 {[%clk 0:01:39.2]} 16. Bc2 {[%clk 0:01:55.7]} 16... Nc4 {[%clk
0:01:39.1]} 17. Qe2 {[%clk 0:01:42.1]} 17... Nxb2 {[%clk 0:01:30.2]} 18. Bxg6
{[%clk 0:01:27.1]} 18... hxg6 {[%clk 0:01:27.7]} 19. Qxb2 {[%clk 0:01:27.7]}
19... Nd5 {[%clk 0:01:23.5]} 20. Bd4 {[%clk 0:01:27]} 20... e5 {[%clk
0:00:56.1]} 21. Bf2 {[%clk 0:01:24.4]} 21... Qc4 {[%clk 0:00:55.8]} 22. Qb3
{[%clk 0:01:16.6]} 22... Rc8 {[%clk 0:00:52.2]} 23. Rad1 {[%clk 0:01:06.2]}
23... Bf8 {[%clk 0:00:44.2]} 24. Rxd5 {[%clk 0:01:03.9]} 24... Qxb3 {[%clk
0:00:39.5]} 25. axb3 {[%clk 0:01:03.9]} 25... Rac6 {[%clk 0:00:26.8]} 26. c4
{[%clk 0:01:03.7]} 26... Ra6 {[%clk 0:00:24.3]} 27. Rfd1 {[%clk 0:01:02.4]}
27... Rcc6 {[%clk 0:00:16.1]} 28. Be3 {[%clk 0:00:52]} 28... f5 {[%clk 0:00:15]}
29. g3 {[%clk 0:00:51.4]} 29... Be7 {[%clk 0:00:13.9]} 30. h4 {[%clk 0:00:49]}
30... Kf7 {[%clk 0:00:13.6]} 31. Bg5 {[%clk 0:00:49.2]} 31... Bf8 {[%clk
0:00:13.3]} 32. Kf2 {[%clk 0:00:43.7]} 32... Ke6 {[%clk 0:00:13.7]} 33. Re1
{[%clk 0:00:42.1]} 33... Ra2+ {[%clk 0:00:14]} 34. Re2 {[%clk 0:00:42.6]} 34...
Ra1 {[%clk 0:00:13.9]} 35. Nd4+ {[%clk 0:00:42.4]} 1-0